bitfinex-derivatives/quotes_SOLF0:USTF0_20250720
["timestamp","ask_amount","ask_price","bid_price","bid_amount"]
[1753026308152,3.06,181.3,181.29,3.24]
[1753026308752,3.06,181.3,181.28,8.7541]
[1753026309547,3.06,181.3,181.28,3.24]
[1753026309747,3.06,181.3,181.24,3.24]
[1753026310247,3.06,181.3,181.27,5.5142]
[1753026310450,3.06,181.3,181.27,8.7542]
[1753026310852,3.06,181.3,181.27,5.5142]
[1753026311052,3.06,181.3,181.28,3.24]
[1753026311450,3.06,181.3,181.26,8.7546]
[1753026312057,2.30335099,181.29,181.26,3.24]
[1753026312357,3.06,181.28,181.26,3.24]
[1753026312546,3.06,181.28,181.25,5.5149]
[1753026312547,2.30335099,181.27,181.18,3.24]
[1753026312752,3.06,181.24,181.18,3.24]
[1753026313753,3.06,181.22,181.2,8.7563]
[1753026313950,3.06,181.22,181.21,3.24]
[1753026314351,3.06,181.22,181.21,8.7563]
[1753026314653,2.30335099,181.23,181.22,3.24]
[1753026315057,5.36335099,181.23,181.22,3.24]
[1753026315757,3.06,181.22,181.21,3.24]
[1753026316946,3.06,181.22,181.21,8.7561]
[1753026320657,3.06,181.22,181.16,3.24]
[1753026321757,3.06,181.2,181.18,5.5168]
[1753026322361,3.06,181.2,181.18,8.7568]
[1753026322958,3.06,181.2,181.19,8.7567]
[1753026323160,3.06,181.22,181.19,3.24]
[1753026323463,3.06,181.21,181.19,3.24]
[1753026324066,2.30335099,181.22,181.19,3.24]
[1753026324266,3.06,181.2,181.19,8.7567]
[1753026325866,3.06,181.21,181.15,2.30335099]
[1753026326361,3.06,181.21,181.2,5.5164]
[1753026326563,3.06,181.21,181.2,8.7564]
[1753026329171,5.36335099,181.21,181.2,5.5164]
[1753026329667,3.14,181.2,181.19,5.5167]
[1753026329969,3.14,181.2,181.16,3.24]
[1753026330164,3.14,181.18,181.16,3.24]
[1753026330367,3.14,181.18,181.17,5.5173]
[1753026330667,3.14,181.18,181.11,2.30335099]
[1753026330668,3.14,181.18,181.11,3.24]
[1753026330868,2.30335099,181.17,181.16,5.5174]
[1753026331069,5.44335099,181.17,181.16,5.5174]
[1753026336766,3.14,181.25,181.16,3.24]
[1753026336975,5.44335099,181.22,181.16,3.24]
[1753026337173,3.14,181.21,181.16,3.24]
[1753026337374,3.14,181.2,181.16,3.24]
[1753026337570,5.44335099,181.22,181.16,3.24]
[1753026337776,3.14,181.22,181.16,3.24]
[1753026338070,5.44335099,181.24,181.16,3.24]
[1753026338270,3.14,181.24,181.18,3.24]
[1753026338474,3.14,181.24,181.23,5.5155]
[1753026338673,3.14,181.24,181.23,8.7555]
[1753026339376,3.14,181.27,181.24,3.24]
[1753026339968,3.14,181.27,181.26,8.7543]
[1753026340677,3.14,181.27,181.26,3.24]
[1753026342385,3.14,181.27,181.26,8.7546]
[1753026343874,3.14,181.28,181.27,5.5142]
[1753026344180,3.14,181.29,181.27,5.5142]
[1753026344479,3.14,181.29,181.28,3.24]
[1753026353082,3.14,181.3,181.28,3.24]
[1753026354083,3.14,181.31,181.29,3.24]
[1753026354482,3.14,181.31,181.3,3.24]
[1753026355485,3.14,181.31,181.29,3.24]
[1753026355689,3.14,181.31,181.3,3.24]
[1753026359476,113.852,181.35,181.3,3.24]
[1753026359477,3.13,181.35,181.3,3.24]
[1753026359781,3.13,181.33,181.3,3.24]
[1753026359982,3.13,181.33,181.27,2.30335099]
[1753026359983,3.13,181.33,181.32,3.0]
[1753026360992,2.30335099,181.34,181.32,3.0]
[1753026360993,107.92,181.4,181.32,3.0]
[1753026361182,3.13,181.35,181.33,3.0]
[1753026361684,3.13,181.35,181.32,5.5127]
[1753026361984,3.13,181.35,181.33,3.0]
[1753026362386,3.13,181.35,181.34,3.0]
[1753026364191,3.13,181.35,181.33,3.0]
[1753026366991,3.13,181.35,181.34,3.0]
[1753026367787,3.13,181.35,181.33,3.0]
[1753026368790,3.13,181.35,181.34,3.0]
[1753026369486,3.13,181.35,181.34,8.5122]
[1753026369789,3.13,181.35,181.34,3.0]
[1753026370191,3.13,181.38,181.34,3.0]
[1753026370691,3.13,181.38,181.35,5.5116]
[1753026370883,3.13,181.38,181.36,3.0]
[1753026373793,3.13,181.39,181.36,3.0]
[1753026374292,3.13,181.4,181.37,3.0]
[1753026376993,3.13,181.4,181.37,5.5112]
[1753026377195,3.13,181.4,181.38,3.0]
[1753026378294,3.13,181.39,181.38,3.0]
[1753026384598,3.13,181.42,181.38,3.0]
[1753026384800,3.13,181.41,181.38,3.0]
[1753026385100,3.13,181.4,181.38,3.0]
[1753026385302,3.13,181.39,181.38,3.0]
[1753026391402,1.47037305,181.41,181.38,3.0]
[1753026391602,2.95,181.4,181.38,3.0]
[1753026392206,1.47037305,181.41,181.38,3.0]
[1753026392412,2.95,181.39,181.38,3.0]
[1753026396610,2.95,181.49,181.39,3.09]
[1753026396809,2.95,181.44,181.41,3.09]
[1753026397010,2.95,181.51,181.43,3.09]
[1753026397211,1.47037305,181.49,181.45,3.09]
[1753026397412,2.95,181.48,181.45,3.09]
[1753026397812,2.95,181.48,181.45,5.5087]
[1753026398009,2.95,181.48,181.46,3.09]
[1753026398209,2.95,181.47,181.46,3.09]
[1753026398408,2.95,181.49,181.46,4.56037305]
[1753026398612,2.95,181.49,181.47,3.09]
[1753026399011,1.47037305,181.52,181.49,3.09]
[1753026399216,2.95,181.5,181.49,3.09]
[1753026399815,2.95,181.52,181.49,3.09]
[1753026400918,2.95,181.53,181.49,3.09]
[1753026401323,2.95,181.57,181.49,3.09]
[1753026401520,2.95,181.57,181.51,3.09]
[1753026402221,2.95,181.56,181.53,3.09]
[1753026403124,2.2947709,181.6,181.53,3.09]
[1753026403318,2.95,181.59,181.53,3.09]
[1753026403615,2.95,181.59,181.53,8.5961]
[1753026403817,2.2947709,181.58,181.45,3.09]
[1753026404021,2.95,181.57,181.51,3.09]
[1753026405911,2.95,181.57,181.51,5.5068]
[1753026406117,2.95,181.57,181.52,3.09]
[1753026407617,5.5054,181.56,181.52,3.09]
[1753026407813,2.95,181.55,181.5,3.09]
[1753026409426,2.95,181.55,181.5,8.5972]
[1753026409625,2.95,181.55,181.51,3.09]
[1753026411222,2.95,181.56,181.51,8.5969]
[1753026411420,2.95,181.56,181.52,3.09]
[1753026413127,5.5054,181.56,181.52,3.09]
[1753026413326,2.95,181.55,181.53,3.09]
[1753026413717,2.95,181.54,181.52,3.09]
[1753026414428,2.95,181.55,181.53,3.09]
[1753026415423,2.95,181.55,181.53,5.5062]
[1753026415624,2.95,181.55,181.54,3.09]
[1753026417232,2.95,181.57,181.54,3.09]
[1753026417731,2.95,181.57,181.55,3.09]
[1753026419330,2.95,181.57,181.5,2.2947709]
[1753026419531,2.95,181.57,181.54,5.506]
[1753026419830,3.25,181.58,181.55,3.01]
[1753026420229,3.25,181.64,181.53,3.01]
[1753026420433,3.25,181.62,181.55,3.01]
[1753026421124,3.25,181.62,181.56,2.2947709]
[1753026421321,3.25,181.64,181.59,3.01]
[1753026421527,5.5447709,181.64,181.57,3.01]
[1753026421730,3.25,181.63,181.57,3.01]
[1753026421933,3.25,181.62,181.59,3.01]
[1753026422232,3.25,181.62,181.57,3.01]
[1753026422436,3.25,181.62,181.58,5.5047]
[1753026422629,3.25,181.62,181.6,3.01]
[1753026422824,3.25,181.62,181.57,5.505]
[1753026423029,3.25,181.62,181.59,3.01]
[1753026423431,3.25,181.62,181.58,5.5047]
[1753026423632,3.25,181.62,181.6,3.01]
[1753026427136,3.25,181.62,181.61,3.01]
[1753026428830,8.7531,181.64,181.61,3.01]
[1753026429030,3.25,181.63,181.61,3.01]
[1753026429834,13.29287024,181.65,181.61,3.01]
[1753026430140,3.25,181.64,181.61,3.01]
[1753026431740,10.04287024,181.65,181.61,3.01]
[1753026431946,3.25,181.63,181.61,3.01]
[1753026435045,4.53997024,181.65,181.61,3.01]
[1753026435243,3.25,181.62,181.61,3.01]
[1753026436647,3.25,181.61,181.56,2.2947709]
[1753026436946,3.25,181.61,181.57,3.01]
[1753026437339,5.5038,181.61,181.57,3.01]
[1753026437647,3.25,181.59,181.57,3.01]
[1753026438441,4.53997024,181.65,181.59,3.01]
[1753026438646,3.25,181.64,181.59,3.01]
[1753026439038,3.25,181.63,181.59,3.01]
[1753026439545,5.5032,181.63,181.59,3.01]
[1753026439842,3.25,181.61,181.59,3.01]
[1753026440944,3.25,181.61,181.59,8.5144]
[1753026441245,3.25,181.61,181.6,3.01]
[1753026441645,3.25,181.64,181.6,3.01]
[1753026441847,4.53997024,181.65,181.63,3.01]
[1753026442048,4.53997024,181.65,181.64,5.3047709]
[1753026442245,4.53997024,181.65,181.64,10.8076709]
[1753026442448,4.53997024,181.65,181.64,8.5129]
[1753026442645,7.78997024,181.65,181.64,3.01]
[1753026443148,7.78997024,181.65,181.64,8.5129]
[1753026443938,7.78997024,181.65,181.64,3.01]
[1753026444851,7.78997024,181.65,181.64,8.5129]
[1753026446349,7.78997024,181.65,181.64,3.01]
[1753026446951,4.53997024,181.65,181.64,3.01]
[1753026447850,4.53997024,181.65,181.64,8.5129]
[1753026449153,7.49997024,181.65,181.64,8.5129]
[1753026452461,4.53997024,181.65,181.64,10.8076709]
[1753026457464,2.96,181.71,181.65,3.22]
[1753026458064,2.96,181.71,181.67,8.722]
[1753026458366,2.96,181.71,181.67,3.22]
[1753026460067,2.96,181.71,181.68,3.22]
[1753026461566,2.96,181.71,181.68,8.7217]
[1753026462372,2.96,181.71,181.68,8.75696081]
[1753026463364,2.96,181.71,181.69,5.5014]
[1753026464569,2.96,181.71,181.68,3.25526081]
[1753026465068,2.96,181.71,181.69,5.5013]
[1753026467776,2.96,181.71,181.7,5.5011]
[1753026468479,2.96,181.71,181.69,5.5013]
[1753026469075,8.4608,181.71,181.68,8.75686081]
[1753026469376,2.96,181.7,181.68,8.75686081]
[1753026469771,6.17539213,181.75,181.68,0.03526081]
[1753026469772,2.2947709,181.72,181.68,0.03526081]
[1753026470078,2.96,181.69,181.68,0.03526081]
[1753026470973,8.4614,181.69,181.68,0.03526081]
[1753026475679,8.4614,181.69,181.68,3.25526081]
[1753026476678,8.4614,181.69,181.68,0.03526081]
[1753026477378,2.96,181.65,181.64,3.22]
[1753026478576,5.5021,181.67,181.64,3.22]
[1753026478778,3.08,181.67,181.66,3.1]
[1753026479579,8.582,181.67,181.64,3.1]
[1753026479882,3.08,181.66,181.65,3.1]
[1753026481786,0.03518924,181.67,181.65,3.1]
[1753026483084,0.03518924,181.67,181.65,8.6026]
[1753026483284,0.03518924,181.67,181.66,3.1]
[1753026484980,3.11518924,181.67,181.66,3.1]
[1753026485581,0.03518924,181.67,181.66,3.1]
[1753026486880,3.11518924,181.67,181.66,3.1]
[1753026488485,0.03518924,181.67,181.66,3.1]
[1753026488687,9.25539213,181.74,181.67,3.1]
[1753026488987,3.08,181.76,181.7,3.1]
[1753026489184,5.4997,181.75,181.7,3.1]
[1753026489385,3.08,181.74,181.7,3.1]
[1753026489580,3.08,181.74,181.71,3.1]
[1753026490086,3.08,181.73,181.72,3.1]
[1753026492090,3.08,181.73,181.69,5.5014]
[1753026492384,3.08,181.73,181.71,3.1]
[1753026492589,3.08,181.74,181.7,3.1]
[1753026492786,3.08,181.74,181.71,3.1]
[1753026492981,5.4994,181.76,181.71,3.1]
[1753026493186,2.2947709,181.77,181.71,3.1]
[1753026493391,3.08,181.76,181.71,3.1]
[1753026493701,3.08,181.74,181.71,3.1]
[1753026494688,3.08,181.73,181.71,3.1]
[1753026495191,3.08,181.76,181.71,3.1]
[1753026495585,3.08,181.76,181.7,0.03499932]
[1753026495789,3.08,181.74,181.72,3.1]
[1753026496394,3.08,181.73,181.71,5.5007]
[1753026496987,3.08,181.73,181.72,3.1]
[1753026499191,3.08,181.73,181.71,3.1]
[1753026499391,3.08,181.73,181.7,0.03499932]
[1753026499392,3.08,181.71,181.7,0.03499932]
[1753026500191,8.5808,181.71,181.7,0.03499932]
[1753026500585,5.82898186,181.71,181.7,0.03499932]
[1753026500797,2.2947709,181.73,181.7,3.13499932]
[1753026501191,7.7955709,181.71,181.7,0.03499932]
[1753026501889,7.7955709,181.71,181.7,9.932e-05]
[1753026502695,10.8755709,181.71,181.7,9.932e-05]
[1753026509402,5.5023,181.66,181.65,3.03]
[1753026509707,3.16,181.66,181.59,2.2947709]
[1753026509900,2.2947709,181.67,181.61,5.5036]
[1753026510101,3.16,181.66,181.58,369.82]
[1753026510803,1.32598415,181.67,181.59,3.03]
[1753026511199,1.32598415,181.67,181.62,3.03]
[1753026511404,2.2947709,181.63,181.62,3.03]
[1753026511604,7.7979709,181.63,181.62,3.03]
[1753026511804,2.2947709,181.63,181.55,3.03]
[1753026512804,3.16,181.62,181.55,3.03]
[1753026513204,5.5044,181.6,181.56,5.5053]
[1753026513504,0.03494386,181.6,181.57,3.03]
[1753026514207,5.5045,181.59,181.57,3.03]
[1753026514605,0.03494386,181.6,181.57,3.03]
[1753026514805,5.5048,181.58,181.57,3.03]
[1753026515607,2.75132586,181.58,181.57,3.03]
[1753026516010,5.91132586,181.58,181.57,3.03]
[1753026516712,3.16,181.56,181.54,3.03]
[1753026516907,8.6652,181.57,181.54,3.03]
[1753026517108,3.16,181.56,181.54,3.03]
[1753026517811,8.6654,181.56,181.54,3.03]
[1753026518403,2.2947709,181.58,181.54,3.03]
[1753026518602,5.4547709,181.58,181.54,3.03]
[1753026519008,10.9597709,181.58,181.54,3.03]
[1753026519318,5.505,181.58,181.54,3.03]
[1753026520014,5.5051,181.57,181.54,3.03]
[1753026520314,8.6651,181.57,181.54,3.03]
[1753026520812,3.16,181.57,181.54,3.03]
[1753026521406,8.6651,181.57,181.54,3.03]
[1753026521610,8.6651,181.57,181.54,8.536]
[1753026521813,8.6651,181.57,181.55,3.03]
[1753026522014,3.16,181.57,181.55,3.03]
[1753026522613,3.16,181.57,181.54,5.506]
[1753026522614,3.16,181.56,181.54,3.03]
[1753026523012,8.6648,181.58,181.54,8.5359]
[1753026523209,3.16,181.57,181.55,3.03]
[1753026523411,3.16,181.56,181.5,107.7947709]
[1753026523608,2.2947709,181.57,181.52,5.5064]
[1753026523809,3.16,181.55,181.53,3.03]
[1753026524014,3.16,181.56,181.51,3.03]
[1753026524317,3.16,181.56,181.54,3.03]
[1753026524719,3.16,181.58,181.54,3.03]
[1753026525823,5.4547709,181.61,181.54,3.03]
[1753026526322,3.16,181.59,181.57,3.03]
[1753026526712,3.16,181.59,181.57,5.5049]
[1753026526921,3.16,181.59,181.58,3.03]
[1753026527318,3.16,181.59,181.58,8.5348]
[1753026528112,3.16,181.59,181.58,3.03]
[1753026528318,3.16,181.61,181.58,3.03]
[1753026528716,3.19479759,181.6,181.59,3.03]
[1753026529122,3.19479759,181.6,181.59,8.5345]
[1753026529317,3.19479759,181.6,181.59,3.03]
[1753026530828,2.2947709,181.62,181.59,3.03]
[1753026531123,7.7984709,181.62,181.59,3.03]
[1753026531818,2.2947709,181.61,181.59,3.03]
[1753026532727,3.3847709,181.61,181.59,3.03]
[1753026532924,8.8886709,181.61,181.6,3.03]
[1753026533724,6.5939,181.61,181.6,3.03]
[1753026533931,8.8886709,181.61,181.6,3.03]
[1753026535731,5.5037,181.62,181.6,3.03]
[1753026535933,2.2947709,181.61,181.6,3.03]
[1753026537436,6.5937,181.62,181.6,3.03]
[1753026537636,7.7985709,181.61,181.6,3.03]
[1753026538237,8.8985709,181.61,181.6,3.03]
[1753026539135,8.07125986,181.61,181.6,3.03]
[1753026539527,6.6038,181.61,181.6,3.03]
[1753026539733,8.07125986,181.61,181.6,3.03]
[1753026541442,6.6038,181.61,181.6,3.03]
[1753026541738,8.07125986,181.61,181.6,3.03]
[1753026542141,6.6038,181.61,181.6,3.03]
[1753026542335,8.07125986,181.61,181.6,3.03]
[1753026543040,5.5042,181.6,181.59,3.22510093]
[1753026543233,6.6042,181.6,181.59,3.22510093]
[1753026543938,8.07165986,181.6,181.59,3.22510093]
[1753026545241,6.6048,181.58,181.57,3.19]
[1753026545440,8.07225986,181.58,181.57,3.19]
[1753026545643,6.97225986,181.58,181.57,3.19]
[1753026545844,8.07225986,181.58,181.57,3.19]
[1753026546642,6.97225986,181.58,181.57,3.19]
[1753026548840,5.5048,181.58,181.57,3.19]
[1753026549041,6.97225986,181.58,181.57,3.19]
[1753026549838,8.07225986,181.58,181.57,3.19]
[1753026551747,6.6048,181.58,181.57,3.19]
[1753026551950,6.97225986,181.58,181.57,3.19]
[1753026552444,8.07225986,181.58,181.57,3.19]
[1753026553147,6.6048,181.58,181.57,3.19]
[1753026553345,6.97225986,181.58,181.57,3.19]
[1753026554646,1.46745986,181.58,181.57,3.19]
[1753026555449,6.97225986,181.58,181.57,3.19]
[1753026556346,8.07225986,181.58,181.57,3.19]
[1753026556543,6.97225986,181.58,181.57,3.19]
[1753026557845,1.46745986,181.58,181.57,3.19]
[1753026558447,0.03558,181.59,181.57,3.19]
[1753026558651,0.03558,181.59,181.58,3.19]
[1753026558951,1.46745986,181.63,181.58,3.19]
[1753026559149,1.46745986,181.63,181.61,3.19]
[1753026559750,6.97075986,181.63,181.61,3.19]
[1753026560554,5.5036,181.62,181.61,3.19]
[1753026561055,1.46745986,181.62,181.61,3.19]
[1753026561257,3.54930975,181.63,181.61,3.19]
[1753026562358,1.13,181.65,181.61,3.19]
[1753026562359,7.79565157,181.62,181.61,3.19]
[1753026562752,5.5036,181.62,181.61,3.19]
[1753026562961,5.5034,181.63,181.61,3.19]
[1753026563460,5.5036,181.62,181.61,3.19]
[1753026564659,7.30539213,181.67,181.61,3.19]
[1753026564861,3.42205157,181.67,181.61,3.19]
[1753026565163,1.13,181.66,181.61,3.19]
[1753026565363,5.5029,181.65,181.62,3.19]
[1753026568856,2.29205157,181.67,181.62,3.19]
[1753026569057,105.1,181.68,181.6,5.53976761]
[1753026569058,1.12,181.64,181.61,3.02]
[1753026569260,2.29205157,181.63,181.61,3.02]
[1753026569461,1.12,181.61,181.6,0.03566761]
[1753026569657,3.41205157,181.61,181.6,0.03566761]
[1753026569860,2.29205157,181.61,181.6,3.05566761]
[1753026570260,5.5039,181.61,181.6,3.05566761]
[1753026571860,3.41205157,181.62,181.6,0.03566761]
[1753026572060,3.41205157,181.62,181.61,3.02]
[1753026572460,6.6236,181.62,181.61,3.02]
[1753026572771,8.91565157,181.62,181.61,3.02]
[1753026573764,7.79565157,181.62,181.61,3.02]
[1753026574362,8.91565157,181.62,181.61,3.02]
[1753026575262,7.79565157,181.62,181.61,3.02]
[1753026575967,7.79545157,181.63,181.61,3.02]
[1753026576166,6.17539213,181.67,181.61,3.02]
[1753026576366,14.6874437,181.68,181.61,3.02]
[1753026576567,5.5027,181.65,181.63,3.02]
[1753026577268,5.5024,181.66,181.63,8.5233]
[1753026577468,7.79445157,181.66,181.64,3.02]
[1753026577668,2.29205157,181.66,181.64,3.02]
[1753026578559,5.5027,181.65,181.64,3.02]
[1753026579461,5.503,181.64,181.63,0.03497978]
[1753026579663,7.79505157,181.64,181.63,0.03497978]
[1753026580466,7.79505157,181.64,181.63,3.05497978]
[1753026580667,5.5036,181.62,181.61,3.02]
[1753026580868,14.6874437,181.68,181.52,5.31205157]
[1753026580869,2.29205157,181.61,181.52,5.31205157]
[1753026581168,2.29205157,181.61,181.53,3.02]
[1753026581570,5.5046,181.59,181.56,5.5052]
[1753026581770,5.5046,181.59,181.57,3.02]
[1753026581970,2.29205157,181.61,181.57,3.02]
[1753026582873,5.5044,181.6,181.58,3.02]
[1753026583175,2.29205157,181.64,181.58,3.02]
[1753026583372,2.29205157,181.64,181.58,8.5246]
[1753026583373,5.504,181.61,181.58,8.5246]
[1753026583570,2.29205157,181.62,181.56,3.02]
[1753026583874,5.5044,181.6,181.57,5.5048]
[1753026584069,2.29205157,181.62,181.56,3.02]
[1753026585172,5.504,181.61,181.57,5.505]
[1753026585376,5.504,181.61,181.58,3.02]
[1753026585771,5.5045,181.6,181.58,3.02]
[1753026586875,7.79605157,181.61,181.58,3.02]
[1753026587477,14.6874437,181.68,181.58,5.5047]
[1753026587675,2.29205157,181.64,181.59,3.02]
[1753026588377,5.5033,181.63,181.56,3.02]
[1753026588880,2.29205157,181.66,181.58,3.02]
[1753026589874,14.6874437,181.68,181.61,3.02]
[1753026590176,2.29205157,181.66,181.61,3.02]
[1753026590377,2.29205157,181.66,181.62,3.02]
[1753026590378,5.5029,181.65,181.62,3.02]
[1753026590583,2.29205157,181.66,181.62,3.02]
[1753026590880,7.79505157,181.65,181.62,3.02]
[1753026591280,2.29205157,181.65,181.62,3.02]
[1753026591476,5.5032,181.64,181.63,3.02]
[1753026594183,7.79525157,181.64,181.63,3.02]
[1753026594674,5.5022,181.67,181.63,3.02]
[1753026594880,2.29205157,181.66,181.65,3.02]
[1753026595180,2.29205157,181.66,181.59,8.5243]
[1753026595381,5.5034,181.63,181.59,3.02]
[1753026595577,2.29205157,181.64,181.59,3.02]
[1753026595779,5.504,181.61,181.59,3.02]
[1753026596282,2.29205157,181.62,181.59,3.02]
[1753026596482,2.32706551,181.62,181.59,3.02]
[1753026597078,7.83076551,181.62,181.6,3.02]
[1753026597279,0.03501394,181.62,181.6,3.02]
[1753026597476,0.03501394,181.62,181.6,8.524]
[1753026597680,0.03501394,181.62,181.61,3.02]
[1753026598284,5.53861394,181.62,181.61,3.02]
[1753026600688,5.5046,181.59,181.53,4.58050962]
[1753026600893,2.29205157,181.58,181.51,4.58050962]
[1753026601089,5.32205157,181.58,181.5,4.58050962]
[1753026601292,5.5052,181.57,181.5,4.58050962]
[1753026601692,9.26308819,181.66,181.5,4.58050962]
[1753026601992,5.505,181.58,181.51,2.29205157]
[1753026602391,2.29205157,181.6,181.55,3.03]
[1753026602792,5.5051,181.58,181.55,3.03]
[1753026603291,2.29205157,181.59,181.55,3.03]
[1753026604698,2.29205157,181.59,181.56,3.03]
[1753026605194,5.5051,181.58,181.56,3.03]
[1753026605585,2.29205157,181.63,181.56,3.03]
[1753026605997,2.29205157,181.63,181.58,5.5046]
[1753026606192,2.29205157,181.63,181.59,3.03]
[1753026606388,5.5037,181.62,181.59,3.03]
[1753026606792,5.5037,181.62,181.59,8.5345]
[1753026607091,5.5037,181.62,181.6,3.03]
[1753026609195,5.5039,181.61,181.6,3.03]
[1753026609593,2.29205157,181.61,181.52,6.87256119]
[1753026609799,5.5043,181.6,181.59,3.03]
[1753026610396,7.79605157,181.61,181.6,3.03]
[1753026611101,5.504,181.61,181.6,3.03]
[1753026611299,7.79605157,181.61,181.6,3.03]
[1753026613202,5.504,181.61,181.6,3.03]
[1753026613404,7.79605157,181.61,181.6,3.03]
[1753026616101,5.5051,181.57,181.52,6.87256119]
[1753026616297,2.29205157,181.59,181.52,2.29205157]
[1753026616700,2.29205157,181.57,181.51,3.03]
[1753026617100,6.17747037,181.61,181.51,3.03]
[1753026617298,2.29205157,181.58,181.54,5.506]
[1753026617602,2.29205157,181.58,181.55,3.03]
[1753026617801,6.17747037,181.63,181.55,3.03]
[1753026618004,2.29205157,181.63,181.55,3.03]
[1753026618299,2.29205157,181.61,181.57,3.03]
[1753026618797,5.5048,181.58,181.57,3.03]
[1753026619002,2.29205157,181.61,181.57,3.03]
[1753026619203,6.17747037,181.65,181.57,3.03]
[1753026619404,2.29205157,181.62,181.57,3.03]
[1753026619999,6.17747037,181.65,181.58,3.03]
[1753026620299,6.17747037,181.68,181.58,3.03]
[1753026620498,5.5036,181.62,181.58,3.03]
[1753026622103,7.79535157,181.64,181.58,3.03]
[1753026622293,6.17747037,181.66,181.58,5.32205157]
[1753026622495,5.5027,181.65,181.58,2.29205157]
[1753026622700,5.5027,181.65,181.59,3.03]
[1753026623903,5.5027,181.65,181.61,3.03]
[1753026624099,5.503,181.64,181.61,3.03]
[1753026624302,2.29205157,181.65,181.61,3.03]
[1753026624502,6.17747037,181.68,181.61,3.03]
[1753026624704,2.29205157,181.65,181.61,3.03]
[1753026624899,5.503,181.65,181.61,3.03]
[1753026625705,0.03504821,181.65,181.61,3.03]
[1753026626100,0.03504821,181.65,181.61,8.5338]
[1753026626300,0.03504821,181.65,181.62,3.03]
[1753026627101,0.03504821,181.65,181.63,3.03]
[1753026627308,0.03504821,181.65,181.63,8.5332]
[1753026627507,0.03504821,181.65,181.64,3.03]
[1753026628607,6.17747037,181.74,181.65,3.16]
[1753026628806,2.29205157,181.72,181.65,3.16]
[1753026629205,5.5012,181.7,181.66,3.16]
[1753026630508,5.5012,181.7,181.66,5.5024]
[1753026630708,5.5012,181.7,181.67,3.16]
[1753026631311,5.5009,181.71,181.67,3.16]
[1753026631715,5.5014,181.7,181.67,3.16]
[1753026632309,2.29205157,181.71,181.68,3.16]
[1753026632916,5.5012,181.7,181.69,3.16]
[1753026633412,5.5015,181.69,181.68,0.03590895]
[1753026633614,5.5015,181.69,181.68,3.19590895]
[1753026635714,5.5015,181.69,181.68,0.03590895]
[1753026635910,7.79355157,181.69,181.68,0.03590895]
[1753026636509,7.79355157,181.69,181.66,3.16]
[1753026636716,3.07,181.66,181.53,4.58050962]
[1753026637017,3.07,181.64,181.57,2.29205157]
[1753026637311,2.29205157,181.65,181.57,2.29205157]
[1753026637713,5.503,181.64,181.59,5.5043]
[1753026637913,5.503,181.64,181.54,4.58050962]